Cogmind - Beta 16 @@@ ROGUE MODE // 2025.10.30 @ 13:41:48 Player: WetterLettuce Result: Destroyed by S-43 Plague with Heavy Machine Gun Performance ------------- Evolutions (9) 4500 Regions Visited (18) 3600 Robots Destroyed (113) 565 Value Destroyed (4060) 4060 Prototype IDs (33) 660 Alien Tech Used (0) 0 Bonus (5182) 5182 TOTAL SCORE: 18567 Bonus ------- Follower Combat Kills 1297 Met Zhirov 300 Built Enhanced Grunts 300 A7 Reached Mainframe 300 Met R17 at Cetus 500 Met R17 at Research 2000 Scanned by Researcher 500 Friendly Fire -15 Cogmind --------- Core Integrity 0/1600 Matter 189/300 Energy 91/100 System Corruption 5% Temperature Cool (0) Movement Core (200) Ox3 Location -1/Access Parts ------- > --- POWER (1) -------- (None) > --- PROPULSION (7) --- (None) > --- UTILITY (14) ----- Advanced Signal Interpreter Hacking Suite > --- WEAPON (3) ------- Linear Accelerator > --- INVENTORY (5) ---- Quantum Reactor Stasis Canceller Enhanced Quantum Rifle Enhanced Nova Cannon Peak State ------------ > --- POWER ------------ Quantum Reactor > --- PROPULSION ------- Combat Linear Gravjet Combat Linear Gravjet Impulse Thruster Q-thruster Impulse Thruster Array > --- UTILITY ---------- Advanced Signal Interpreter Advanced Targeting Computer Core Analyzer Advanced Phase Shifter Hacking Suite Hacking Suite Hacking Suite Improved Hacking Suite Improved Hacking Suite Advanced Hacking Suite System Shield System Shield Advanced System Shield > --- WEAPON ----------- Enhanced Quantum Rifle Heavy Machine Gun Railgun > --- INVENTORY -------- Stasis Canceller Enhanced Quantum Rifle Railgun Linear Accelerator Enhanced Force Lance [Rating: 140] Favorites ----------- Power Nuclear Core Engine Light Angular Momentum Engine Power Core Nuclear Core Reactor Light Antimatter Reactor Propulsion Carbon-fiber Leg Leg Carbon-fiber Leg Wheel Armored Wheel Hover Unit Combat Linear Gravjet Flight Unit Xenon Bombardment Thruster Utility Hacking Suite Device Improved Heat Sink Storage Medium Storage Unit Processor Advanced Targeting Computer Hackware Hacking Suite Protection Utility Shielding Weapon Heavy Assault Rifle Energy Gun Heavy EM Shotgun Energy Cannon Improved EM Pulse Cannon Ballistic Gun Heavy Assault Rifle Ballistic Cannon Linear Accelerator Slashing Weapon Phasing Sabre Piercing Weapon Enhanced Force Lance Special Melee Weapon Datajack Build | -11 -10 -10 -9 -9 -8 -7 -6 -6 -6 -6 -6 -5 -4 -4 -3 -2 -2 -1 ------- Run | Yrd Mat Min Mat Min Mat Fac Fac Ext Cet Arc Hub Fac Fac Arm Res Res Qua Acc Slots Evolved 18 | . . . 2 . 2 2 2 . . . . 2 2 . 2 2 . 2 Power . | . . . . . . . . . . . . . . . . . . . Propulsion 5 | . . . 1 . . . 1 . . . . 1 . . 1 . . 1 Utility 12 | . . . 1 . 1 2 1 . . . . 1 2 . 1 2 . 1 Weapon 1 | . . . . . 1 . . . . . . . . . . . . . Parts Attached 149 | 6 4 2 21 6 21 8 17 9 4 . 1 4 4 4 27 4 6 1 Power 13 | 1 1 . 2 1 1 1 1 1 . . . . 1 . 2 1 . . Engine 6 | 1 1 . 2 . . . . 1 . . . . 1 . . . . . Core 4 | . . . . 1 1 1 1 . . . . . . . . . . . Reactor 3 | . . . . . . . . . . . . . . . 2 1 . . Propulsion 47 | 2 1 1 8 2 5 1 10 3 . . . 1 1 2 7 1 1 1 Treads . | . . . . . . . . . . . . . . . . . . . Leg 20 | 2 1 1 7 2 5 1 1 . . . . . . . . . . . Wheel 1 | . . . . . . . 1 . . . . . . . . . . . Hover 5 | . . . . . . . . . . . . . . 2 2 1 . . Flight 21 | . . . 1 . . . 8 3 . . . 1 1 . 5 . 1 1 Utility 50 | 1 1 . 6 2 6 3 4 1 2 . 1 3 2 2 12 1 3 . Device 16 | . 1 . 2 1 3 1 1 . . . . . 1 . 4 1 1 . Storage 2 | 1 . . . . 1 . . . . . . . . . . . . . Processor 6 | . . . . . 1 . 1 . . . . 1 . . 2 . 1 . Hackware 19 | . . . . . 1 1 2 1 1 . 1 2 1 2 6 . 1 . Protection 7 | . . . 4 1 . 1 . . 1 . . . . . . . . . Artifact . | . . . . . . . . . . . . . . . . . . . Weapon 39 | 2 1 1 5 1 9 3 2 4 2 . . . . . 6 1 2 . Energy Gun 10 | 1 1 . 1 . 3 . . 1 1 . . . . . 1 1 . . Energy Cannon 3 | . . . . . 1 1 . . . . . . . . 1 . . . Ballistic Gun 22 | 1 . 1 4 1 4 2 2 2 1 . . . . . 3 . 1 . Ballistic Cannon 1 | . . . . . . . . . . . . . . . 1 . . . Launcher . | . . . . . . . . . . . . . . . . . . . Special Weapon . | . . . . . . . . . . . . . . . . . . . Impact Weapon . | . . . . . . . . . . . . . . . . . . . Slashing Weapon 1 | . . . . . . . . 1 . . . . . . . . . . Piercing Weapon 1 | . . . . . . . . . . . . . . . . . 1 . Special Melee Weapon 1 | . . . . . 1 . . . . . . . . . . . . . Unidentified Prototypes 13 | . . . 3 . 3 . 2 . 2 . . . 1 . 1 . 1 . Corrupted Parts 1 | . . . . . . . . . 1 . . . . . . . . . System Corruption 7 | . . . . . . . . . 7 . . . . . . . . . Parts Lost 60 | . 3 2 2 1 1 3 4 5 2 . . 1 4 2 15 3 1 11 Power 4 | . 1 . . . . . . 1 . . . . . . 1 1 . . Propulsion 20 | . 1 1 . . . 1 3 2 . . . . 3 . 3 1 1 4 Utility 25 | . . . 2 . . . 1 1 2 . . 1 . 1 9 1 . 7 Weapon 11 | . 1 1 . 1 1 2 . 1 . . . . 1 1 2 . . . Highest Loss Streak 11 | . 3 2 1 1 1 2 2 2 2 . . 1 3 2 5 3 1 11 To Critical Strikes . | . . . . . . . . . . . . . . . . . . . Average Backups 6 | 1 3 4 7 7 9 10 6 4 4 4 4 4 4 4 4 4 4 4 Power . | . . 1 1 1 1 . . . . . . . . . . . . 1 Propulsion 2 | . 1 2 3 4 4 2 . . . . . . 1 1 2 1 . . Utility 2 | . . . . . 3 5 4 3 4 4 4 4 2 2 1 1 . . Weapon . | . . . 1 . . . 1 1 . . . . . . 1 2 3 3 Tool/Special . | . . . . . . . . . . . . . . . . . . . Unused Backups 18 | . . . 2 . 4 5 1 3 . . . . 1 . . . . 2 Power 2 | . . . 1 . . 1 . . . . . . . . . . . . Propulsion 5 | . . . 1 . 2 1 . . . . . . 1 . . . . . Utility 6 | . . . . . 2 2 . 2 . . . . . . . . . . Weapon 4 | . . . . . . 1 . 1 . . . . . . . . . 2 Tool/Special 1 | . . . . . . . 1 . . . . . . . . . . . Average Slot Usage (%) 90 | . 94 95 95 99 98 97 93 76 92 93 98 93 92 81 77 80 84 41 Engine 3 | . 12 14 11 4 . . . 3 6 6 6 5 5 5 . . . . Core 3 | . . . . 6 9 7 6 . . . . . . . . . . . Leg 15 | . 27 26 32 33 27 21 6 . . . . . . . . . . . Flight 7 | . . . . . . . 15 19 26 26 26 23 20 10 12 15 11 3 Device 7 | . 10 14 10 7 9 6 12 7 2 . . . . . 4 3 4 3 Storage 5 | . 14 14 11 11 9 7 2 . . . . . . . . . . . Processor 7 | . . . . . 8 7 10 13 13 13 13 16 15 15 13 8 9 6 Hackware 14 | . . . . . 5 14 19 24 24 20 24 28 31 34 28 34 37 23 Protection 3 | . . . 7 14 3 6 . . 2 6 6 . 4 1 . . . . Energy Gun 5 | . 14 14 11 1 8 6 . . 2 6 6 5 5 . 3 3 3 . Energy Cannon 1 | . . . . . 2 5 . . . . . . . . . . . . Ballistic Gun 9 | . 14 12 11 19 14 9 15 4 6 6 6 5 4 . 3 7 4 1 Peak Build Rating 140 | 6 9 10 22 22 36 41 50 60 68 62 65 77 89 89 122 131 140 109 Average Rating 45 | 4 8 9 18 19 30 39 47 43 60 62 64 72 83 79 98 121 123 51 On Entrance 52 | . 6 9 10 19 19 36 37 50 60 62 62 65 77 62 75 122 124 108 Avg Prop Armor Cover (%) 8 | . . . 5 . . . 4 6 . . . . . 10 12 6 5 7 Naked Turns . | . . . . . . . . . . . . . . . . . . . Heaviest Build 40 | 13 14 12 22 24 33 33 28 19 24 24 24 24 28 23 31 40 34 20 Greatest Support 52 | 20 20 20 45 41 47 47 52 24 24 24 24 36 36 30 47 52 35 27 Greatest Overweight (x) 4 | 3 . . . . . 1 1 4 . . . . . . . . . . Average Overweight (x) . | . . . . . . . . . . . . . . . . . . . Largest Inventory Capacity 10 | 8 8 8 8 8 10 10 10 5 5 5 5 5 5 5 5 5 5 5 Average Capacity 7 | 7 8 8 8 8 9 10 7 5 5 5 5 5 5 5 5 5 5 5 Most Carried 10 | 3 5 6 8 8 10 10 10 5 5 4 5 5 5 5 5 5 5 5 Average Carried 6 | 1 3 4 7 7 9 9 6 4 4 4 4 4 4 4 4 4 4 4 Final Capacity 10 | 8 8 8 8 8 10 10 5 5 5 5 5 5 5 5 5 5 5 5 Final Carried 10 | 3 5 6 8 8 10 10 5 5 4 4 5 5 5 5 5 4 4 4 Class Distribution -------------------- 17% | Mutant 14% | Hacker-Sprinter 13% | Hacker-Gunner 12% | Scavenger-Mutant 9% | Wizard-Mutant 8% | Gunner 6% | Scavenger-Gunner 5% | Hacker-Mutant 5% | Wizard-Sprinter 4% | Scavenger-Sprinter Dominant Class ---------------- Mutant | -10/Materials Mutant | -10/Mines Mutant | -9/Materials Scavenger-Mutant | -9/Mines Gunner | -8/Materials Hacker-Gunner | -7/Factory Scavenger-Sprinter | -6/Factory Hacker-Sprinter | -6/Extension Hacker-Sprinter | -6/Cetus Commander-Sprinter | -6/Archives Hacker-Sprinter | -6/Hub_04(d) Hacker-Sprinter | -5/Factory Wizard-Sprinter | -4/Factory Wizard-Mutant | -4/Armory Wizard-Mutant | -3/Research Wizard-Sprinter | -2/Research Wizard-Mutant | -2/Quarantine Wizard-Mutant | -1/Access Resources | -11 -10 -10 -9 -9 -8 -7 -6 -6 -6 -6 -6 -5 -4 -4 -3 -2 -2 -1 ----------- Run | Yrd Mat Min Mat Min Mat Fac Fac Ext Cet Arc Hub Fac Fac Arm Res Res Qua Acc Matter Collected 3129 | 260 65 19 440 49 560 252 346 256 175 . . 84 . 7 431 156 29 . Remotely . | . . . . . . . . . . . . . . . . . . . Salvage Created 4653 | . 322 160 922 97 1015 850 315 179 154 . 34 84 35 . 135 239 29 83 Parts 262 | . 18 5 57 5 54 53 19 11 8 . 6 3 . . 9 8 1 5 Haulers Intercepted 4 | . . . . . 4 . . . . . . . . . . . . . Recyclers Shooed 1 | . . . . . . . . 1 . . . . . . . . . . Parts Field Recycled . | . . . . . . . . . . . . . . . . . . . Retrieved Matter . | . . . . . . . . . . . . . . . . . . . Parts Self-Destructed . | . . . . . . . . . . . . . . . . . . . Prevented . | . . . . . . . . . . . . . . . . . . . Parts Restored . | . . . . . . . . . . . . . . . . . . . Kills | -11 -10 -10 -9 -9 -8 -7 -6 -6 -6 -6 -6 -5 -4 -4 -3 -2 -2 -1 ------- Run | Yrd Mat Min Mat Min Mat Fac Fac Ext Cet Arc Hub Fac Fac Arm Res Res Qua Acc Combat Hostiles Destroyed 82 | . 8 2 20 2 13 13 11 3 2 . . 1 . . 1 3 . 3 Guns 72 | . 7 2 19 2 12 10 11 3 2 . . 1 . . . 3 . . Cannons 7 | . . . . . 1 2 . . . . . . . . 1 . . 3 AOE 2 | . . . 1 . . 1 . . . . . . . . . . . . Classes Destroyed 13 | . 3 1 4 1 1 2 1 . . . . . . . . . . . Worker 5 | . . . . . . 2 1 . . . 1 . . . 1 . . . Builder 4 | . . . 1 . 1 1 1 . . . . . . . . . . . Hauler 4 | . . . . . 4 . . . . . . . . . . . . . Recycler 4 | . . 1 . . . 3 . . . . . . . . . . . . Operator 10 | . 1 . . . 3 1 . 1 . . 1 . . . 2 . 1 . Watcher 4 | . . . 2 . . . . . . . . . 1 . 1 . . . Swarmer 24 | . 3 . 5 . . 6 7 . . . . . . . . . . 3 Grunt 27 | . 5 2 8 1 7 3 . . . . . . . . 1 . . . Brawler 2 | . . . 2 . . . . . . . . . . . . . . . Duelist 1 | . . . . 1 . . . . . . . . . . . . . . Sentry 22 | . . . 5 . 6 3 2 3 . . . 1 . . . 2 . . Hunter 2 | . . . . . . . 1 . . . . . . . . 1 . . Programmer 2 | . . . . . . 1 1 . . . . . . . . . . . Cetus Guard 2 | . . . . . . . . . 2 . . . . . . . . . Best Kill Streak 8 | . 3 3 5 2 4 8 4 2 2 . 1 1 1 . 1 1 1 3 Combat Bots Only 5 | . 3 2 5 2 2 3 4 2 2 . . 1 . . 1 1 . 3 Max Kills in Single Turn 2 | . 2 1 2 1 2 2 2 1 1 . 1 1 1 . 1 1 1 1 Gunslinging 1 | . 1 . 1 . . . . . . . . . . . . . . . Exploded 1 | . . . 1 . . 1 . . . . . . . . . . . . Melee . | . . . . . . . . . . . . . . . . . . . Uniques/NPCs Destroyed . | . . . . . . . . . . . . . . . . . . . Combat | -11 -10 -10 -9 -9 -8 -7 -6 -6 -6 -6 -6 -5 -4 -4 -3 -2 -2 -1 -------- Run | Yrd Mat Min Mat Min Mat Fac Fac Ext Cet Arc Hub Fac Fac Arm Res Res Qua Acc Hostile Shots Fired 953 | . 64 13 88 5 63 128 75 95 23 . 12 7 24 29 86 39 48 154 Missed 405 | . 20 5 32 2 20 62 31 40 11 . 10 5 11 14 42 21 25 54 Hits 548 | . 44 8 56 3 43 66 44 55 12 . 2 2 13 15 44 18 23 100 Melee 1 | . . . . 1 . . . . . . . . . . . . . . Projectile 547 | . 44 8 56 2 43 66 44 55 12 . 2 2 13 15 44 18 23 100 AOE 1 | . . . . . . . . . . . . . . 1 . . . . Critical Strikes 10 | . . . . . 2 1 . . 2 . . . . . 3 . 1 1 Damage Taken 9423 | . 476 106 660 55 664 792 710 428 229 . 12 50 271 475 1397 447 372 2279 Core 3147 | . 55 12 41 . 105 157 134 85 66 . . . 22 257 356 73 165 1619 Absorbed by Shields 133 | . . . . . . . . 5 128 . . . . . . . . . Redirected to Shielding 17 | . . . 4 . . 13 . . . . . . . . . . . . Core Remaining (%) 81 | 100 . 73 . 89 80 77 . . . . 66 100 . 75 72 . 83 . Volleys Fired 340 | . 31 10 66 4 56 42 27 19 20 . 3 5 4 . 33 13 4 3 Largest 3 | . 2 2 2 2 3 3 3 2 2 . 2 2 2 . 3 3 2 1 Hottest 270 | . 60 60 68 46 180 144 76 69 270 . 110 110 110 . 161 130 95 54 Shots Fired 665 | . 60 18 110 8 143 100 59 23 22 . 6 10 8 . 54 33 8 3 Gun 623 | . 60 18 110 8 136 74 59 23 22 . 6 10 8 . 48 33 8 . Cannon 42 | . . . . . 7 26 . . . . . . . . 6 . . 3 Launcher . | . . . . . . . . . . . . . . . . . . . Special . | . . . . . . . . . . . . . . . . . . . Kinetic 433 | . 30 8 66 8 105 50 59 19 20 . 3 5 4 . 28 20 5 3 Thermal 70 | . . . . . 10 . . 4 2 . 3 5 4 . 26 13 3 . Explosive . | . . . . . . . . . . . . . . . . . . . Electromagnetic 162 | . 30 10 44 . 28 50 . . . . . . . . . . . . Robot Hit Streak 16 | . 14 6 14 3 12 10 10 14 4 . 1 3 3 . 8 16 2 2 Robot Miss Streak 8 | . 5 2 6 1 3 7 8 3 3 . 1 1 1 . 2 1 1 1 Penetration Max 1 | . . . . . . . . 1 1 . . . . . 1 . . . Secondary Targets 9 | . 1 . 4 . 1 . 3 . . . . . . . . . . . Max Gunslinging Chain 1 | . 1 . 1 . 1 . 1 . . . . . . . . . . . Shots Hit Robots 456 | . 42 12 69 5 110 64 44 17 8 . 3 8 4 . 38 26 4 2 Core Hits 252 | . 15 7 40 3 45 41 43 13 6 . 2 3 3 . 13 12 3 3 Critical Kills 3 | . . . . . 1 . . 1 1 . . . . . . . . . Critical Parts Destroyed 2 | . . . . . 1 . 1 . . . . . . . . . . . Critical Strikes 8 | . . . . . 2 . 1 1 1 . . . . . 3 . . . Destroy 5 | . . . . . 2 . 1 1 1 . . . . . . . . . Blast 3 | . . . . . . . . . . . . . . . 3 . . . Melee Attacks 7 | . . . . . . . . . . . . 1 . 2 . . 3 1 Impact . | . . . . . . . . . . . . . . . . . . . Slashing 3 | . . . . . . . . . . . . 1 . 2 . . . . Piercing 4 | . . . . . . . . . . . . . . . . . 3 1 Sneak Attacks . | . . . . . . . . . . . . . . . . . . . Combat Hostiles . | . . . . . . . . . . . . . . . . . . . Follow-up Attacks . | . . . . . . . . . . . . . . . . . . . Damage Inflicted 9699 | . 659 232 1105 75 1841 1694 1010 469 229 . 81 210 96 . 1121 659 76 142 Guns 7716 | . 506 145 1023 75 1683 842 728 459 229 . 81 210 96 . 904 659 76 . Cannons 982 | . . . . . 122 522 . . . . . . . . 217 . . 121 Explosions 970 | . 153 87 82 . 36 330 282 . . . . . . . . . . . Melee . | . . . . . . . . . . . . . . . . . . . Ramming 31 | . . . . . . . . 10 . . . . . . . . . 21 Kinetic 5095 | . 162 55 514 75 1110 571 728 421 229 . 21 106 71 . 511 354 46 121 Thermal 2057 | . 153 87 82 . 233 330 . 38 . . 60 104 25 . 610 305 30 . Explosive 282 | . . . . . . . 282 . . . . . . . . . . . Electromagnetic 2234 | . 344 90 509 . 498 793 . . . . . . . . . . . . Impact . | . . . . . . . . . . . . . . . . . . . Slashing . | . . . . . . . . . . . . . . . . . . . Piercing . | . . . . . . . . . . . . . . . . . . . Highest Corruption 9 | . . . . . . 1 . 2 9 9 9 . . . 9 . 2 5 Average Corruption 4 | . . . . . . 1 . 2 4 9 9 . . . 8 . 1 3 Corruption Purged . | . . . . . . . . . . . . . . . . . . . Corruption Blocked . | . . . . . . . . . . . . . . . . . . . Effects 22 | . . . . . . 5 . 1 3 . 5 . . . 5 . 1 2 Message Errors 3 | . . . . . . 1 . . . . . . . . 1 . . 1 Matter Fused 8 | . . . . . . . . 1 1 . 5 . . . 1 . . . Heat Flow Errors 2 | . . . . . . . . . 2 . . . . . . . . . Energy Discharges 1 | . . . . . . . . . . . . . . . 1 . . . Parts Rejected 1 | . . . . . . 1 . . . . . . . . . . . . Data Loss (minor) 3 | . . . . . . 2 . . . . . . . . 1 . . . Data Loss (major) 2 | . . . . . . . . . . . . . . . 1 . . 1 Misfires 2 | . . . . . . 1 . . . . . . . . . . 1 . Overload Shots 1 | . . . . . . . . . 1 . . . . . . . . . Overflow Damage 172 | . . . . . . 64 96 . . . . . . . 12 . . . Projectiles 26 | . . . . . . 14 . . . . . . . . 12 . . . Explosions 146 | . . . . . . 50 96 . . . . . . . . . . . Melee . | . . . . . . . . . . . . . . . . . . . Knockbacks 3 | . . . . . . . . . . . . . . . 3 . . . Impact . | . . . . . . . . . . . . . . . . . . . Kinetic 3 | . . . . . . . . . . . . . . . 3 . . . Secondary . | . . . . . . . . . . . . . . . . . . . Self-Inflicted Damage 278 | . 31 . 44 . 13 61 114 5 . . . . . . . . . 10 Shots 6 | . 1 . 2 . 1 1 1 . . . . . . . . . . . Rammed 4 | . . . . . . . . 1 . . . . . . . . . 3 Targets Rammed 4 | . . . . . . . . 1 . . . . . . . . . 3 Kicked . | . . . . . . . . . . . . . . . . . . . Crushed . | . . . . . . . . . . . . . . . . . . . Highest Temperature 404 | . 67 5 28 . 153 211 4 67 208 . 84 165 58 . 404 145 . . Average Temperature 52 | . 26 3 15 . 47 61 4 32 79 . 40 80 23 . 53 55 . . Received Heat Transfer 1366 | . 105 60 159 12 288 147 54 132 22 . 6 9 18 66 144 36 . 108 Effects 1 | . . . . . . . . . . . . . . . 1 . . . Energy Bleed 1 | . . . . . . . . . . . . . . . 1 . . . Siege Activations . | . . . . . . . . . . . . . . . . . . . Martial Activations . | . . . . . . . . . . . . . . . . . . . Shielding Activations . | . . . . . . . . . . . . . . . . . . . Robots Disrupted . | . . . . . . . . . . . . . . . . . . . Combat Hostiles . | . . . . . . . . . . . . . . . . . . . Robots Corrupted 1 | . 1 . . . . . . . . . . . . . . . . . Combat Hostiles 1 | . 1 . . . . . . . . . . . . . . . . . Parts Fried 5 | . 2 . . . 2 1 . . . . . . . . . . . . Impact Corruptions . | . . . . . . . . . . . . . . . . . . . Robots Melted . | . . . . . . . . . . . . . . . . . . . Combat Hostiles . | . . . . . . . . . . . . . . . . . . . Parts Melted 4 | . . . 1 . 1 . . 1 . . . . . . 1 . . . Heat Transferred 2466 | . 250 150 150 . 360 150 . 74 . . 74 111 37 . 703 370 37 . Parts Sabotaged . | . . . . . . . . . . . . . . . . . . . Parts Stolen . | . . . . . . . . . . . . . . . . . . . Parts Stripped . | . . . . . . . . . . . . . . . . . . . Power Chain Reactions 7 | . 2 1 2 . 1 1 . . . . . . . . . . . . Alert | -11 -10 -10 -9 -9 -8 -7 -6 -6 -6 -6 -6 -5 -4 -4 -3 -2 -2 -1 ------- Run | Yrd Mat Min Mat Min Mat Fac Fac Ext Cet Arc Hub Fac Fac Arm Res Res Qua Acc Maximum Alert Level 2 | . . . 1 . . 1 1 1 2 . . . . . . . . . Low Security (%) 85 | 100 100 100 97 100 100 68 79 51 5 100 100 100 100 100 100 100 100 100 Level 1 13 | . . . 2 . . 31 20 48 65 . . . . . . . . . Level 2 . | . . . . . . . . . 28 . . . . . . . . . Level 3 . | . . . . . . . . . . . . . . . . . . . Level 4 . | . . . . . . . . . . . . . . . . . . . Level 5 . | . . . . . . . . . . . . . . . . . . . High Security . | . . . . . . . . . . . . . . . . . . . Max Security . | . . . . . . . . . . . . . . . . . . . Peak Influence 419 | . 83 39 219 112 170 264 352 397 419 159 78 38 30 20 117 78 80 155 Initial 190 | . . 18 11 82 20 46 109 172 190 159 23 23 16 . . 18 38 33 Average 99 | . 27 21 102 81 62 125 143 230 333 120 41 14 8 8 22 28 43 44 Influence Increases 4609 | . 211 59 564 50 541 541 481 705 359 . 75 92 37 36 373 108 122 255 Destroy 0b10 Robot/C 2200 | . 160 40 400 40 300 260 220 420 160 . 20 20 . . 40 60 . 60 Destroy 0b10 Robot/NC 165 | . 5 5 15 . 40 35 10 10 5 . 10 . 5 . 20 . 5 . Destroy Leader 448 | . 20 10 94 10 98 70 60 32 . . 10 10 2 . 2 30 . . Allied During Kill 389 | . . . . . 21 . 2 192 143 . 26 . . . 5 . . . Successful Hack 262 | . 19 . 18 . 48 55 24 29 . . 8 . 13 6 9 . 6 27 Disable Machine 345 | . . . 15 . 30 105 60 15 45 . . 15 15 30 . . 15 . Destroy Structure 110 | . 7 4 7 . 4 16 30 7 6 . 1 2 2 . 12 3 6 3 Partial Spotted 90 | . . . . . . . 30 . . . . . . . 45 15 . . Lose Combat Pursuer 600 | . . . 15 . . . 45 . . . . 45 . . 240 . 90 165 Influence Decreases 4454 | . 163 78 380 211 490 421 352 716 301 330 96 105 72 36 339 74 133 157 Entered New Map 1113 | . . 30 18 131 32 57 114 180 151 240 46 25 19 . . 16 30 24 Time Decay 2514 | . 133 30 342 70 428 334 198 326 110 30 50 70 41 30 171 48 53 50 Lost Part 422 | . 30 18 20 10 10 30 40 50 20 . . 2 10 6 90 10 10 66 Lost Ally 346 | . . . . . 20 . . 160 20 60 . . 2 . 27 . 40 17 Purge Threat 59 | . . . . . . . . . . . . 8 . . 51 . . . Squads Dispatched 25 | . 1 . . 1 3 2 4 . . . 2 1 1 . 4 . 4 2 Investigation 2 | . . . . . 1 . . . . . . . 1 . . . . . Extermination 4 | . . . . . . 1 1 . . . . 1 . . 1 . . . Reinforcement 14 | . 1 . . . 2 . . . . . 2 . . . 3 . 4 2 Assault 1 | . . . . 1 . . . . . . . . . . . . . . Garrison 4 | . . . . . . 1 3 . . . . . . . . . . . Intercept . | . . . . . . . . . . . . . . . . . . . Searches Triggered . | . . . . . . . . . . . . . . . . . . . Construction Impeded . | . . . . . . . . . . . . . . . . . . . Haulers Reinforced 1 | . . . . . . . . . . . . . . . 1 . . . Active Scanning Responses . | . . . . . . . . . . . . . . . . . . . Cargo Convoy Interrupts . | . . . . . . . . . . . . . . . . . . . Stealth | -11 -10 -10 -9 -9 -8 -7 -6 -6 -6 -6 -6 -5 -4 -4 -3 -2 -2 -1 --------- Run | Yrd Mat Min Mat Min Mat Fac Fac Ext Cet Arc Hub Fac Fac Arm Res Res Qua Acc Distress Signals 16 | . . . 1 . 2 . . 3 2 . 1 . 1 . 3 . 2 1 Communications Jammed . | . . . . . . . . . . . . . . . . . . . Distress Signals . | . . . . . . . . . . . . . . . . . . . Times Spotted 248 | . 11 2 30 2 17 16 14 25 11 . 5 3 12 12 38 6 15 29 Peak Tracking Total 20 | . 3 2 6 2 2 3 3 6 5 . 3 4 12 14 7 4 9 20 Tactical Retreats 15 | . . . 1 . . . 2 . . . . 1 . . 7 . 1 3 Traps | -11 -10 -10 -9 -9 -8 -7 -6 -6 -6 -6 -6 -5 -4 -4 -3 -2 -2 -1 ------- Run | Yrd Mat Min Mat Min Mat Fac Fac Ext Cet Arc Hub Fac Fac Arm Res Res Qua Acc Traps Triggered 16 | . 1 . 2 . 1 2 . 3 . . . 1 1 . 2 . . 3 Indirectly . | . . . . . . . . . . . . . . . . . . . Trap Hack Attempts . | . . . . . . . . . . . . . . . . . . . Triggered . | . . . . . . . . . . . . . . . . . . . Disarmed . | . . . . . . . . . . . . . . . . . . . Reprogrammed . | . . . . . . . . . . . . . . . . . . . Reused . | . . . . . . . . . . . . . . . . . . . Traps Extracted . | . . . . . . . . . . . . . . . . . . . Installed . | . . . . . . . . . . . . . . . . . . . Triggered . | . . . . . . . . . . . . . . . . . . . Machines | -11 -10 -10 -9 -9 -8 -7 -6 -6 -6 -6 -6 -5 -4 -4 -3 -2 -2 -1 ---------- Run | Yrd Mat Min Mat Min Mat Fac Fac Ext Cet Arc Hub Fac Fac Arm Res Res Qua Acc Machines Disabled 24 | . . . 1 . 2 7 4 1 4 . . 1 1 2 . . 1 . Max in Single Turn 6 | . . . 1 . 1 6 2 1 1 . . 1 1 1 . . . . Garrison Access 2 | . . . . . . . . . . . . . 1 . 1 . . . Machines Repaired . | . . . . . . . . . . . . . . . . . . . Machines Dismantled . | . . . . . . . . . . . . . . . . . . . Machines Sabotaged . | . . . . . . . . . . . . . . . . . . . Overloaded Fab Kills . | . . . . . . . . . . . . . . . . . . . Hacking | -11 -10 -10 -9 -9 -8 -7 -6 -6 -6 -6 -6 -5 -4 -4 -3 -2 -2 -1 --------- Run | Yrd Mat Min Mat Min Mat Fac Fac Ext Cet Arc Hub Fac Fac Arm Res Res Qua Acc Machines Accessed 84 | . 2 . 8 . 14 8 9 8 2 . 3 5 5 2 9 2 5 2 Terminals 54 | . 2 . 5 . 10 5 1 8 2 . 3 3 2 1 6 1 3 2 Fabricators 9 | . . . . . . 2 3 . . . . 1 1 1 1 . . . Repair Stations . | . . . . . . . . . . . . . . . . . . . Recycling Units 11 | . . . 2 . 2 1 4 . . . . . 1 . 1 . . . Scanalyzers 8 | . . . 1 . 2 . 1 . . . . 1 . . . 1 2 . Garrison Access 2 | . . . . . . . . . . . . . 1 . 1 . . . Total Hacks 268 | . 6 . 27 . 47 19 18 16 3 . 10 24 16 11 41 12 11 7 Successful 168 | . 4 . 16 . 31 8 10 7 1 . 4 15 12 8 28 9 11 4 Failed 96 | . 2 . 10 . 15 11 7 9 2 . 6 9 4 3 13 2 . 3 Catastrophic 5 | . . . . . 1 . 1 . . . 2 1 . . . . . . Database Lockouts 4 | . . . 1 . 1 . 1 . . . . . . . . 1 . . Manual 139 | . 4 . 12 . 19 11 9 3 3 1 7 15 11 4 31 1 2 6 Terminals 200 | . 6 . 18 . 39 13 2 16 3 . 10 18 13 10 34 6 5 7 Fabricators 16 | . . . . . . 3 6 . . . . 2 1 1 3 . . . Repair Stations . | . . . . . . . . . . . . . . . . . . . Recycling Units 22 | . . . 5 . 3 3 7 . . . . . 1 . 3 . . . Scanalyzers 28 | . . . 4 . 5 . 3 . . . . 4 . . . 6 6 . Garrison Access 2 | . . . . . . . . . . . . . 1 . 1 . . . Terminal Hacks 77 | . 1 . 6 . 16 1 . 6 1 . 1 6 6 6 17 4 4 2 Record 4 | . . . . . . . . . 1 . . . . . 1 . 2 . Part Schematic 2 | . . . . . 1 . . . . . . . 1 . . . . . Robot Analysis 1 | . . . . . 1 . . . . . . . . . . . . . Prototype ID Bank 8 | . . . . . 2 . . 1 . . . . 1 1 2 . . 1 Open Door 5 | . . . . . . . . 5 . . . . . . . . . . Level Access Points 5 | . . . . . . . . . . . . . 1 1 1 . 1 1 Branch Access Points 7 | . . . . . 1 . . . . . 1 1 1 1 1 . 1 . Emergency Access Points 5 | . . . . . 1 . . . . . . . 1 1 1 1 . . Terminal Index 4 | . . . 1 . . . . . . . . 1 . . 1 1 . . Fabricator Index 2 | . . . . . . . . . . . . 1 . 1 . . . . Scanalyzer Index 4 | . . . 1 . . . . . . . . 1 . . 1 1 . . Alert Level 6 | . . . 2 . 3 . . . . . . . . . 1 . . . Unreport Threat 5 | . . . . . . . . . . . . 1 . . 4 . . . Transport Status 1 | . . . . . 1 . . . . . . . . . . . . . Hauler Manifests 3 | . 1 . 1 . 1 . . . . . . . . . . . . . Registered Components 7 | . . . 1 . 1 1 . . . . . 1 1 . 1 1 . . Registered Prototypes 1 | . . . . . 1 . . . . . . . . . . . . . Zone Layout 7 | . . . . . 3 . . . . . . . . 1 3 . . . Fabricator Hacks . | . . . . . . . . . . . . . . . . . . . Repair Station Hacks . | . . . . . . . . . . . . . . . . . . . Recycling Unit Hacks 12 | . . . 2 . 2 1 4 . . . . . 1 . 2 . . . Retrieve Matter 1 | . . . . . . . . . . . . . . . 1 . . . Retrieve Components 11 | . . . 2 . 2 1 4 . . . . . 1 . 1 . . . Scanalyzer 21 | . . . 3 . 2 . 2 . . . . 4 . . . 4 6 . Retrieve Study 21 | . . . 3 . 2 . 2 . . . . 4 . . . 4 6 . Garrison Access Hacks 2 | . . . . . . . . . . . . . 1 . 1 . . . Seal Access 2 | . . . . . . . . . . . . . 1 . 1 . . . Unauthorized Hacks 56 | . 3 . 5 . 11 6 4 1 . . 3 5 4 2 8 1 1 2 Terminals 47 | . 3 . 5 . 11 5 1 1 . . 3 4 3 1 6 1 1 2 Botnet 42 | . 2 . 5 . 10 5 1 1 . . 3 3 2 1 5 1 1 2 Operators 5 | . 1 . . . 1 . . . . . . 1 1 . 1 . . . Fabricators 7 | . . . . . . 1 2 . . . . 1 1 1 1 . . . Fabnet 7 | . . . . . . 1 2 . . . . 1 1 1 1 . . . Repair Stations . | . . . . . . . . . . . . . . . . . . . Recycling Units 2 | . . . . . . . 1 . . . . . . . 1 . . . Recyclers 2 | . . . . . . . 1 . . . . . . . 1 . . . Scanalyzers . | . . . . . . . . . . . . . . . . . . . Garrison Access . | . . . . . . . . . . . . . . . . . . . Data Cores Recovered 4 | . . . . . 1 . . . . . 1 . . . 2 . . . Used 2 | . . . . . . . . . . . 1 . . . 1 . . . Hacking Detections 62 | . 2 . 5 . 12 8 8 3 2 . 3 3 3 1 6 2 2 2 Full Trace Events . | . . . . . . . . . . . . . . . . . . . Feedback Events . | . . . . . . . . . . . . . . . . . . . Feedback Blocked . | . . . . . . . . . . . . . . . . . . . Robot Schematics Acquired . | . . . . . . . . . . . . . . . . . . . Robots Built . | . . . . . . . . . . . . . . . . . . . Authchips . | . . . . . . . . . . . . . . . . . . . Time . | . . . . . . . . . . . . . . . . . . . Total Robot Build Rating . | . . . . . . . . . . . . . . . . . . . Part Schematics Acquired 2 | . . . . . 1 . . . . . . . 1 . . . . . Parts Built . | . . . . . . . . . . . . . . . . . . . Authchips . | . . . . . . . . . . . . . . . . . . . Time . | . . . . . . . . . . . . . . . . . . . Total Part Build Rating . | . . . . . . . . . . . . . . . . . . . Part Studies Acquired 20 | . . . 2 . 2 . 2 . . . . 4 . . . 4 6 . Parts Repaired . | . . . . . . . . . . . . . . . . . . . Time . | . . . . . . . . . . . . . . . . . . . Parts Recycled . | . . . . . . . . . . . . . . . . . . . Recycled Matter . | . . . . . . . . . . . . . . . . . . . Retrieved Matter . | . . . . . . . . . . . . . . . . . . . Retrieved Components 34 | . . . 6 . 10 3 11 . . . . . 3 . 1 . . . Parts Scanalyzed . | . . . . . . . . . . . . . . . . . . . Part Schematics Acquired . | . . . . . . . . . . . . . . . . . . . Parts Damaged . | . . . . . . . . . . . . . . . . . . . Bothacking | -11 -10 -10 -9 -9 -8 -7 -6 -6 -6 -6 -6 -5 -4 -4 -3 -2 -2 -1 ------------ Run | Yrd Mat Min Mat Min Mat Fac Fac Ext Cet Arc Hub Fac Fac Arm Res Res Qua Acc Used RIF Installer . | . . . . . . . . . . . . . . . . . . . Robots Hacked 12 | . . . . . . . 1 . . 2 . . . 1 4 . 3 1 Non-combat . | . . . . . . . . . . . . . . . . . . . Combat 12 | . . . . . . . 1 . . 2 . . . 1 4 . 3 1 Robot Hacks Applied . | . . . . . . . . . . . . . . . . . . . Relay Couplers Released . | . . . . . . . . . . . . . . . . . . . Fabnet Peak Effective % 7 | . . . . . . . 3 3 3 3 3 7 5 5 7 5 5 1 Autooverrided 12 | . . . . . . . 1 . . 2 . . . 1 4 . 3 1 Robots Rewired 16 | . . . . . . . . 15 . . . . 1 . . . . . Allies Hacked . | . . . . . . . . . . . . . . . . . . . Hacks Repelled . | . . . . . . . . . . . . . . . . . . . Allies | -11 -10 -10 -9 -9 -8 -7 -6 -6 -6 -6 -6 -5 -4 -4 -3 -2 -2 -1 -------- Run | Yrd Mat Min Mat Min Mat Fac Fac Ext Cet Arc Hub Fac Fac Arm Res Res Qua Acc Total Allies 39 | . . . . 1 . . 1 20 5 2 . . 1 1 4 . 3 1 Largest Group 12 | . . . . . 1 . 1 10 11 12 7 6 1 1 2 . 2 1 Highest-Rated Group 797 | . . . . . 31 . 32 431 797 797 418 322 49 49 64 . 116 51 Highest-Rated Ally 159 | . . . . . 31 . 32 159 159 156 96 96 49 49 64 . 58 51 Total Orders 2 | . . . . . . . . . . 2 . . . . . . . . STAY 1 | . . . . . . . . . . 1 . . . . . . . . FOLLOW 1 | . . . . . . . . . . 1 . . . . . . . . Ally Attacks 233 | . . . . . 23 . . 126 52 4 3 . 5 . 14 . 2 4 Total Damage 4618 | . . . . . 276 . . 2655 1096 74 72 . 130 . 211 . 45 59 Kills 32 | . . . . . 2 . . 20 8 . 1 . . . 1 . . . Allies Corrupted . | . . . . . . . . . . . . . . . . . . . Allies Melted . | . . . . . . . . . . . . . . . . . . . Intel | -11 -10 -10 -9 -9 -8 -7 -6 -6 -6 -6 -6 -5 -4 -4 -3 -2 -2 -1 ------- Run | Yrd Mat Min Mat Min Mat Fac Fac Ext Cet Arc Hub Fac Fac Arm Res Res Qua Acc Active Infowar (turns) 657 | . . . . . . . 354 130 . . . . . . 173 . . . Jamming 657 | . . . . . . . 354 130 . . . . . . 173 . . . Robot Analysis Total 1 | . . . . . 1 . . . . . . . . . . . . . Derelict Logs Recovered . | . . . . . . . . . . . . . . . . . . . Drone Launches . | . . . . . . . . . . . . . . . . . . . Drone Recoveries . | . . . . . . . . . . . . . . . . . . . Exploration | -11 -10 -10 -9 -9 -8 -7 -6 -6 -6 -6 -6 -5 -4 -4 -3 -2 -2 -1 ------------- Run | Yrd Mat Min Mat Min Mat Fac Fac Ext Cet Arc Hub Fac Fac Arm Res Res Qua Acc Turns Passed 6818 | 71 369 64 1071 153 1175 942 416 722 238 60 119 217 153 73 584 132 136 123 Spaces Moved 8393 | 50 219 28 726 123 892 671 748 1055 527 63 230 593 396 165 1149 247 289 222 Core 180 | 5 . . . . . . . 39 . . . . . . . . . 136 Treads . | . . . . . . . . . . . . . . . . . . . Legs 2826 | 45 219 28 726 123 892 671 122 . . . . . . . . . . . Wheels . | . . . . . . . . . . . . . . . . . . . Hover 88 | . . . . . . . . . . . . . . 1 80 . . 7 Flight 5299 | . . . . . . . 626 1016 527 63 230 593 396 164 1069 247 289 79 Fastest Speed 26 | 50 120 120 105 105 105 108 26 26 29 29 29 29 29 34 32 33 35 39 Average Speed 59 | 120 120 120 112 106 106 108 40 34 29 29 29 29 30 34 37 33 35 46 Slowest Speed 250 | 200 120 120 120 110 108 175 113 250 29 29 29 31 34 67 57 39 39 60 Overloaded Moves . | . . . . . . . . . . . . . . . . . . . Propulsion Burnouts . | . . . . . . . . . . . . . . . . . . . Robots Hopped 60 | . . . . . . . 13 13 . . 10 4 3 1 12 . 1 3 Potential Cave-ins 6 | . . . . . . . . . . . . . . . 6 . . . Cave-ins Triggered 1 | . . . . . . . . . . . . . . . 1 . . . Exploration Rate (%) 37 | 4 43 12 65 35 84 25 26 87 94 78 22 15 12 16 39 9 32 10 Regions Visited 18 Branch Regions 8 Pre-discovered Areas . | . . . . . . . . . . . . . . . . . . . Known Exits Taken 5 | . . . . . . . . . . . . 1 1 1 1 . 1 . Unknown Exits Taken 13 | 1 1 1 1 1 1 1 1 1 1 1 1 . . . . 1 . . Scrap Searched . | . . . . . . . . . . . . . . . . . . . Spaces Dug 3 | . . . . . . . . . . . . . . . . . 2 1 Terrain Destroyed 98 | . 6 4 5 . 4 21 43 1 1 . 1 1 . . 6 2 2 1 Melee 3 | . . . . . . . . . . . . . . . . . 2 1 Projectile 14 | . . . . . 2 . . 1 1 . 1 1 . . 6 2 . . AOE 81 | . 6 4 5 . 2 21 43 . . . . . . . . . . . Terrain Rammed . | . . . . . . . . . . . . . . . . . . . Walls Destroyed . | . . . . . . . . . . . . . . . . . . . Machines Disabled . | . . . . . . . . . . . . . . . . . . . Actions | -11 -10 -10 -9 -9 -8 -7 -6 -6 -6 -6 -6 -5 -4 -4 -3 -2 -2 -1 --------- Run | Yrd Mat Min Mat Min Mat Fac Fac Ext Cet Arc Hub Fac Fac Arm Res Res Qua Acc Total 9607 | 58 270 42 872 137 1016 820 799 1376 588 104 265 616 419 176 1237 267 309 236 Wait 421 | . 12 . 26 . 1 77 . 162 37 42 41 . . . 19 1 . 3 Move 8262 | 49 218 27 725 122 891 670 724 1030 526 62 210 584 389 162 1124 246 286 217 Hop 52 | . . . . . . . 10 11 . . 9 4 3 1 11 . 1 2 Pick Up 80 | 3 5 3 9 2 18 8 7 6 . . 1 1 6 2 6 . 2 1 Fast Attach 84 | 6 1 . 10 1 8 10 6 7 2 . 1 2 2 2 18 3 4 1 Attach 41 | . 3 2 2 2 2 1 5 2 1 . . 2 3 3 9 2 1 1 Detach 15 | . . . 1 1 1 . . . . . . 1 1 1 6 1 1 1 Swap 49 | . . . 14 3 12 3 7 1 1 . . . 2 1 4 . 1 . Drop 106 | . . . 19 2 27 9 13 8 1 . . 1 8 2 6 1 6 3 Fire 340 | . 31 10 66 4 56 42 27 19 20 . 3 5 4 . 33 13 4 3 Melee 7 | . . . . . . . . . . . . 1 . 2 . . 3 1 Ram 4 | . . . . . . . . 1 . . . . . . . . . 3 Kick . | . . . . . . . . . . . . . . . . . . . Crush . | . . . . . . . . . . . . . . . . . . . Escape Stasis 45 | . . . . . . . . 29 . . . 15 . . 1 . . . Rewire 101 | . . . . . . . . 100 . . . . 1 . . . . . Trap . | . . . . . . . . . . . . . . . . . . . Miscellaneous . | . . . . . . . . . . . . . . . . . . . Route ------- -11/Scrapyard -10/Materials (discovered 2 exits: *Mat / [*Min]) -10/Mines -9/Materials (discovered 2 exits: *Mat / [*Min]) -9/Mines -8/Materials (discovered 2 exits: *Fac x2) -7/Factory (discovered 2 exits: *Fac x2) -6/Factory -6/Extension (discovered 3 exits: *Fac x2 / *Cet) -6/Cetus (discovered 3 exits: *Fac x2 / *Arc) -6/Archives (discovered 2 exits: *Fac / *Hub) -6/Hub_04(d) -5/Factory (discovered 3 exits: *Fac / Upp x2) -4/Factory (discovered 7 exits: Res x4 / Upp x2 / *Arm) -4/Armory (discovered 2 exits: *Res x2) -3/Research (discovered 5 exits: *Res x3 / Tes x2) -2/Research -2/Quarantine -1/Access (discovered 1 exit: Sur) History --------- Turn | Location | Event 8 | -11/Scrapyard | Discovered new exit (range 16) 72 | -11/Scrapyard | Entered Materials 195 | -10/Materials | Discovered new exit (range 16) 318 | -10/Materials | Build established: Mutant 389 | -10/Materials | Lost 3 parts (1p1n1w) 390 | -10/Materials | Discovered new exit (range 8) 441 | -10/Materials | Entered Mines 456 | -10/Mines | Discovered new exit (range 10) 505 | -10/Mines | Entered Materials 505 | -9/Materials | Evolved 2 slots: Propulsion x1, Utility x1 811 | -9/Materials | Discovered new exit (range 15) 823 | -9/Materials | Build established: Scavenger-Mutant 1093 | -9/Materials | Central database locked down 1128 | -9/Materials | Discovered new exit (range 7) 1254 | -9/Materials | Build established: Mutant 1576 | -9/Materials | Entered Mines 1718 | -9/Mines | Discovered new exit (range 10) 1723 | -9/Mines | Met a Derelict testing a Signal Generator 1729 | -9/Mines | Entered Materials 1729 | -8/Materials | Accompanied by 1 ally 1729 | -8/Materials | Evolved 2 slots: Utility x1, Weapon x1 2294 | -8/Materials | Central database locked down 2606 | -8/Materials | Build established: Gunner 2668 | -8/Materials | Discovered new exit (range 10) 2846 | -8/Materials | Discovered new exit (range 13) 2904 | -8/Materials | Entered Factory 2904 | -7/Factory | Evolved 2 slots: Utility x2 2988 | -7/Factory | Discovered new exit (range 10) 3221 | -7/Factory | Build established: Hacker-Gunner 3576 | -7/Factory | Garrison activated, responded to threat 3744 | -7/Factory | Discovered new exit (range 7) 3846 | -7/Factory | Entered another Factory area 3846 | -6/Factory | Evolved 2 slots: Propulsion x1, Utility x1 4039 | -6/Factory | Garrison activated, responded to threat 4101 | -6/Factory | Central database locked down 4123 | -6/Factory | Spotted B-75 Beast 4258 | -6/Factory | Discovered new exit (range 14) 4262 | -6/Factory | Entered Extension 4270 | -6/Extension | Rescued a captive Derelict 4271 | -6/Extension | Rescued a captive Derelict 4285 | -6/Extension | Rescued a captive Derelict 4546 | -6/Extension | Lost 3 allies 4560 | -6/Extension | Spotted B-75 Beast 4683 | -6/Extension | Discovered new exit (range 3) 4691 | -6/Extension | Rescued A7 4723 | -6/Extension | Rescued a captive Derelict 4762 | -6/Extension | Build established: Hacker-Sprinter 4942 | -6/Extension | Discovered new exit (range 10) 4942 | -6/Extension | Discovered new exit (range 6) 4984 | -6/Extension | Entered Cetus 4984 | -6/Cetus | Accompanied by 8 allies (A7) 4989 | -6/Cetus | Acquired a Cetus Manufacturing Module code from A7 4993 | -6/Cetus | Spotted Cetus Guard 4993 | -6/Cetus | Spotted Cetus Guard 4998 | -6/Cetus | Destroyed Cetus Guard 5004 | -6/Cetus | Spotted Cetus Guard 5004 | -6/Cetus | Spotted Cetus Guard 5004 | -6/Cetus | Destroyed Cetus Guard 5009 | -6/Cetus | Allies destroyed Cetus Guard 5011 | -6/Cetus | Allies destroyed Cetus Guard 5021 | -6/Cetus | Discovered new exit (range 15) 5050 | -6/Cetus | Started Cetus Manufacturing Module 5074 | -6/Cetus | Discovered new exit (range 16) 5075 | -6/Cetus | Manufactured an Enhanced Grunt 5079 | -6/Cetus | Spotted Cetus Guard 5080 | -6/Cetus | Spotted Cetus Guard 5100 | -6/Cetus | Manufactured an Enhanced Grunt 5107 | -6/Cetus | Spotted Cetus Guard 5110 | -6/Cetus | Spotted Cetus Guard 5123 | -6/Cetus | Allies destroyed Cetus Guard 5123 | -6/Cetus | Allies destroyed Cetus Guard 5125 | -6/Cetus | Manufactured an Enhanced Grunt 5132 | -6/Cetus | Allies destroyed Cetus Guard 5134 | -6/Cetus | Allies destroyed Cetus Guard 5150 | -6/Cetus | Manufactured an Enhanced Grunt 5165 | -6/Cetus | Escorted A7 to Cetus Mainframe 5175 | -6/Cetus | Manufactured an Enhanced Grunt 5182 | -6/Cetus | Discovered new exit (range 16) 5184 | -6/Cetus | Met Revision 17 5222 | -6/Cetus | Entered Archives 5222 | -6/Archives | Accompanied by 11 allies (A7) 5227 | -6/Archives | Received a hacking code to weaken MAIN.C 5229 | -6/Archives | Met Zhirov 5232 | -6/Archives | Unable to access archive contents 5233 | -6/Archives | Discovered new exit (range 15) 5235 | -6/Archives | Reinforcements dispatched to Archives 5236 | -6/Archives | Discovered new exit (range 13) 5280 | -6/Archives | Reinforcements dispatched to Archives 5282 | -6/Archives | Entered Hub_04(d) 5282 | -6/Hub_04(d) | Accompanied by 7 allies 5282 | -6/Hub_04(d) | Discovered new exit (range 12) 5401 | -6/Hub_04(d) | Entered Factory 5401 | -5/Factory | Accompanied by 6 allies 5401 | -5/Factory | Evolved 2 slots: Propulsion x1, Utility x1 5408 | -5/Factory | Discovered new exit (range 11) 5428 | -5/Factory | Identified exit to Factory 5465 | -5/Factory | Identified exit to Upper Caves 5618 | -5/Factory | Entered another Factory area 5618 | -4/Factory | Evolved 2 slots: Utility x2 5754 | -4/Factory | Identified exit to Upper Caves 5754 | -4/Factory | Identified exit to Armory 5754 | -4/Factory | Identified exit to Research 5771 | -4/Factory | Entered Armory 5801 | -4/Armory | Lost 3 parts (2n1w) 5823 | -4/Armory | Local machine network offline 5823 | -4/Armory | Spotted B-86 Titan 5844 | -4/Armory | Entered Research 5844 | -3/Research | Evolved 2 slots: Propulsion x1, Utility x1 5868 | -3/Research | Identified exit to Testing 5868 | -3/Research | Identified exit to Research 6044 | -3/Research | Revision forces began assault on 0b10 6058 | -3/Research | Lost 3 parts (1p1u1w) 6065 | -3/Research | Build established: Wizard-Mutant 6201 | -3/Research | Met up with Revision 17++ 6265 | -3/Research | Lost 5 allies 6281 | -3/Research | Crushed by falling debris 6312 | -3/Research | Lost 5 parts (1n4u) 6384 | -3/Research | Spotted B-86 Titan 6428 | -3/Research | Entered another Research area 6428 | -2/Research | Evolved 2 slots: Utility x2 6454 | -2/Research | Central database locked down 6500 | -2/Research | Discovered new exit (range 15) 6544 | -2/Research | Lost 3 parts (1p1n1u) 6560 | -2/Research | Entered Quarantine 6671 | -2/Quarantine | Identified exit to Access 6682 | -2/Quarantine | Scanned by Researcher 6696 | -2/Quarantine | Entered Access 6696 | -1/Access | Evolved 2 slots: Propulsion x1, Utility x1 6753 | -1/Access | Identified exit to Surface 6793 | -1/Access | Core integrity fell below 50% 6808 | -1/Access | Core integrity fell below 20% 6819 | -1/Access | Destroyed by S-43 Plague with Heavy Machine Gun Last Messages --------------- Adv. System Shield destroyed. System Shield destroyed. ALERT: Hostiles spotted, dispatching reinforcements to Terminal A016. Acquired Impulse Thruster+. A58R6PCSD10CORM M1HOHZDVBM0XVCLOE:6 K-01 Serf cleans the Wave Collapse Detector. Impulse Thruster+ destroyed. K-01 Serf cleans the Wave Collapse Detector. Slammed into K-01 Serf. Destabilizing: System corrupted (+2). K-01 Serf sends out distress signal. Slammed into S-43 Plague. System Shield destroyed. System corrupted: Substantial component data lost. K-01 Serf collects debris. Slug penetrates Wall. S-43 Plague destroyed. Map ----- +----------------------------------------------------+ | #???# #? #????????????????????????????? | | ##### ## ###??????????????????????????? | | ## ???????????????????????????? | | ## #???????????????????????????? | | #???????????????????????????? | | ###?????????????????????????? | | ??????????????????????????? | | #???????????????????????????? | | ########????????????????????? | | # #????????????????????? | | # #????????????????????? | | # #????????????????????? | | =%[ " = #????????????????????? | | ############## * # #????????????????????? | | #????????????# # #????????????????????? | | #????????????# #+######????????????????????? | | #????????????#+#### #########?????????????????? | | #?????????????????# # #?????????????????? | | #####?????????????# # #?????????????????? | | #?????????????+ + #?????????????????? | | #?????????????#### # #?????????????????? | | #????????????????# # #?????????????????? | | #??????????????###=#########?????????????????? | | #??????????????# sss=########## #????????? | | #??????????????# %%%%* s #????????? | | #??????????????# "s]@ Y! #????????? | | #??????????????# t! #????????? | | #??????????????# ########## #????????? | | #??????????????###+###???????????????????????? | | #??????????????? ????????????????????????? | | #??????????????# #??????????????????????? | | ##########?????????# #??????????????????????? | | """"" #?????????# #??????????????????????? | | ""T"" #?????????# #??????????????????????? | | #?????????# #??????????????????????? | | #?????????########??????????????????????? | | #???????????????????????????????????????? | | #???????????????????????????????????????? | | #???????????????????????????????????????? | | #+########???????????????????????????????????????? | | #???????????????????????????????????????????? | | #??????????????????????????????? ???????????? | | #?????????????????????????????## ###????????? | | #????????????????????????????? #????????? | | #????????????????????????????? #????????? | | #????????????????????????????? ?????????? | | #????????????????????????????? ?????????? | | ######????????????????????????????? ?????????? | | ???????????????????????????????????# #?????????? | | ???????????????????????????????????# #?????????? | +----------------------------------------------------+ Best States ------------- Heat Dissipation 65 Energy Generation 27 Energy Capacity 350 Matter Stores 300 Matter Capacity 300 Sight Range 16 Terrain Scan Density 10 Jamming Range 14 Armor Coverage 300 Utility Shielding 33 Phase Shifting 15 Evasion (%) 78 Targeting Accuracy 8 Core Analysis 6 Salvage Targeting 3 Offensive Hacking 68 Defensive Hacking 34 Item Schematics ----------------- Adv. Targeting Computer | -8/Materials | Hacked Lgt. Quantum Reactor | -4/Factory | Hacked Robot Schematics ------------------ None Fabricated ------------ Nothing Repaired ---------- Nothing Studied --------- Datajack | -9/Materials | Hacked Imp. Aluminum Leg | -9/Materials | Hacked Carbon-fiber Leg | -8/Materials | Hacked Titanium Leg | -8/Materials | Hacked VTOL Module | -6/Factory | Hacked Imp. Datajack | -6/Factory | Hacked Xenon Bombardment Thruster | -5/Factory | Hacked Lgt. Angular Momentum Engine | -5/Factory | Hacked Coil Gun | -5/Factory | Hacked Nuclear Pulse Array | -5/Factory | Hacked Impulse Thruster Array | -2/Research | Hacked Enh. Quantum Rifle | -2/Research | Hacked Q-thruster | -2/Research | Hacked Railgun | -2/Research | Hacked Impulse Thruster | -2/Quarantine | Hacked Quantum Reactor | -2/Quarantine | Hacked Enh. Force Lance | -2/Quarantine | Hacked Hvy. Machine Gun | -2/Quarantine | Hacked Linear Accelerator | -2/Quarantine | Hacked Cmb. Linear Gravjet | -2/Quarantine | Hacked Alien Tech Used ----------------- None Achievements -------------- I Have Friends Everywhere Into The Breach Main Advantage Maximum Efficiency Revolutionary Research Challenges ------------ None Game ------ Seed ChargeSmartMicroactuators Manual? 0 Play Time 01:47:41 Cumulative 103.9 hours Start 2025.10.30 @ 11:57:36 End 2025.10.30 @ 13:41:48 Sessions 1 Manual Loads 0 Difficulty Rogue Special Mode None Game No. 120 Rogue 120 Adventurer 0 Explorer 0 Win Type - Total 1 Types 1/0/0/0/0/0/0/0/0/0 Lore% 73 Gallery% 56 Achievement% 39 Wizard Run 0 Options --------- Layout 1 ASCII 0 Keyboard 0 Movement Mouse Keybinds 0 Fullscreen 2 Font 24/Smallcaps Map View 50x35 Zoom Use 0% Tactical HUD 0 Map Filters NONE Filters NONE Steam 1 RUN: 45940f86-6e67-411b-a45c-2cfc65baa0b7